[Event "HUN-chT Youth 2019"]
[Site "Budapest"]
[Date "2019.10.28"]
[Round "4.33"]
[White "Pasti, Anna"]
[Black "Blahota, Marcell"]
[Result "0-1"]
[ECO "A00"]
[WhiteElo "1884"]
[BlackElo "1765"]
[Annotator "NA RC"]
[PlyCount "158"]
[EventDate "2019.10.26"]
[EventType "team-tourn"]
[EventCountry "HUN"]
[SourceTitle "playchess.com"]
[Source "ChessBase"]
[SourceQuality "1"]
[TimeControl "5400+30"]

1. g3 {[%emt 0:00:00]} d5 {[%emt 0:02:15]} 2. Bg2 {[%emt 0:00:00]} Nf6 {[%emt 0:01:06]} 3. d3 {[%emt 0:00:00]} c5 {[%emt 0:07:57]} 4. Nf3 {[%emt 0:01:07]} Nc6 {[%emt 0:01:39]} 5. b3 {[%emt 0:03:00]} e6 {[%emt 0:11:06]} 6. Bb2 {[%emt 0:00:38]} Be7 {[%emt 0:00:48]} 7. Nbd2 {[%emt 0:00:51]} O-O {[%emt 0:00:51]} 8. O-O {[%emt 0:03:55]} Qc7 {[%emt 0:01:45]} 9. Ne1 $146 {[%emt 0:03:57] A06: Réti Opening:1 Nf3 d5} ({Predecessor:} 9. Re1 e5 10. e4 d4 11. Nh4 g6 12. Bc1 Bg4 13. Nhf3 b5 14. h3 Bd7 15. Nh2 Qc8 16. h4 h5 {1-0 (69) Gabuzyan,H (2614)-Kotanjian,T (2485) Yerevan 2016}) 9... e5 {[%emt 0:09:30]} 10. e4 {[%emt 0:00:43]} dxe4 {[%emt 0:02:41]} 11. Nxe4 {[%emt 0:00:41]} Be6 {[%emt 0:12:31]} 12. Nxf6+ {[%emt 0:01:05]} Bxf6 {[%emt 0:01:53]} 13. f4 {[%emt 0:01:24]} Nd4 {[%emt 0:01:50]} 14. Bxd4 {[%emt 0:02:15]} exd4 {[%emt 0:00:53]} 15. Qf3 {[%emt 0:01:15]} Rab8 {[%emt 0:01:47]} 16. g4 {[%emt 0:01:01]} h6 {[%emt 0:09:40]} 17. Bh3 {[%emt 0:10:38]} (17. Qg3 $11) 17... Rbd8 {[%emt 0:02:09]} 18. Ng2 {[%emt 0:13:02]} (18. Bg2 $15) 18... Bd5 {[%emt 0:07:54]} 19. Qf2 {[%emt 0:00:51]} Rfe8 {[%emt 0:00:55]} 20. Rae1 {[%emt 0:04:46]} Qd7 {[%emt 0:06:19]} ({Better is} 20... g6 $17 21. Rxe8+ Rxe8) 21. Qg3 {[%emt 0:03:44]} ({Better is} 21. f5 $15) 21... Bxg2 {[%emt 0:02:11]} 22. Bxg2 {[%emt 0:00:50]} Re3 {[%emt 0:03:15]} 23. Rxe3 {[%emt 0:02:51]} dxe3 {[%emt 0:00:08]} 24. Kh1 {[%emt 0:02:29]} Bd4 {[%emt 0:00:18]} 25. g5 {[%emt 0:01:45]} hxg5 {[%emt 0:02:36]} 26. fxg5 {[%emt 0:02:11]} g6 {[%emt 0:02:40]} 27. Be4 {[%emt 0:02:27]} b5 {[%emt 0:01:18]} 28. Qh4 {[%emt 0:02:58]} (28. Kg2 $15) 28... Qe6 {[%emt 0:01:14]} 29. Qg3 {[%emt 0:01:56]} b4 {[%emt 0:01:24]} 30. Qf3 {[%emt 0:03:24]} Kg7 {[%emt 0:01:17]} 31. Kg2 {[%emt 0:00:57]} f5 {[%emt 0:02:25]} 32. gxf6+ $1 {[%emt 0:00:22]} Qxf6 {[%emt 0:00:19]} 33. Qg4 {[%emt 0:01:48]} Qd6 {[%emt 0:00:42]} 34. Rf5 {[%emt 0:01:52]} e2 {[%emt 0:00:33]} 35. Rg5 {[%emt 0:01:25]} e1=N+ $14 {[%emt 0:00:09]} (35... e1=Q $19 36. Rxg6+ Kf7 37. Qf5+ Bf6) 36. Kh1 {[%emt 0:00:33]} Kf7 {[%emt 0:01:21]} 37. Bxg6+ {[%emt 0:02:08]} Ke7 {[%emt 0:00:13]} 38. Qh4 {[%emt 0:01:58]} Qf6 {[%emt 0:00:56]} 39. Qxe1+ {[%emt 0:01:31]} Kd7 {[%emt 0:00:26]} 40. Rd5+ {[%emt 0:04:12]} Kc6 {[%emt 0:00:20]} 41. Rf5 {[%emt 0:08:54]} Qxg6 {[%emt 0:00:33]} 42. Qe4+ {[%emt 0:00:14]} Kb6 {[%emt 0:00:05]} 43. Rf1 {[%emt 0:00:38]} Qxe4+ {[%emt 0:00:38]} 44. dxe4 {[%emt 0:00:07]} Re8 {[%emt 0:00:08]} 45. Re1 {[%emt 0:00:16]} Kc6 {[%emt 0:00:10]} 46. Kg2 {[%emt 0:00:22]} Rg8+ {[%emt 0:00:06]} 47. Kh3 {[%emt 0:01:16]} Kd6 {[%emt 0:00:18]} 48. Re2 {[%emt 0:00:08]} Ke5 {[%emt 0:00:28]} 49. Kh4 {[%emt 0:00:44]} Kf4 {[%emt 0:00:30]} 50. Kh5 {[%emt 0:00:10]} Kf3 {[%emt 0:00:40]} 51. Re1 {[%emt 0:00:12]} Rh8+ {[%emt 0:01:03]} 52. Kg6 {[%emt 0:00:14]} Rxh2 {[%emt 0:00:11]} 53. e5 {[%emt 0:00:11]} Rg2+ {[%emt 0:00:25]} 54. Kf5 {[%emt 0:00:30]} Bc3 {[%emt 0:00:57]} 55. Rd1 {[%emt 0:00:58]} Bxe5 {[%emt 0:00:39]} 56. Kxe5 {[%emt 0:00:13]} Rxc2 {[%emt 0:00:06]} 57. Ra1 {[%emt 0:01:07]} Ke3 {[%emt 0:00:12]} 58. a3 {[%emt 0:00:59]} a5 {[%emt 0:00:18]} 59. axb4 {[%emt 0:00:45]} axb4 {[%emt 0:00:14]} 60. Rd1 {[%emt 0:01:36]} c4 {[%emt 0:00:55]} 61. bxc4 {[%emt 0:01:49]} Rxc4 {[%emt 0:00:47]} 62. Kd5 {[%emt 0:04:23]} Rc3 {[%emt 0:00:40]} 63. Rh1 {[%emt 0:01:32]} Kd3 {[%emt 0:00:38]} 64. Rh3+ {[%emt 0:00:17]} Kc2 {[%emt 0:00:21]} 65. Rh2+ {[%emt 0:00:11]} Kb3 {[%emt 0:00:38]} 66. Kd4 {[%emt 0:00:19]} Rc8 {[%emt 0:00:26]} 67. Rh3+ {[%emt 0:01:33]} Ka2 {[%emt 0:00:28]} 68. Rh2+ {[%emt 0:00:14]} Ka3 {[%emt 0:00:08]} 69. Rh7 {[%emt 0:00:21]} b3 {[%emt 0:00:12]} 70. Kd3 {[%emt 0:00:59]} Ka2 {[%emt 0:00:55]} 71. Ra7+ {[%emt 0:00:45]} Kb1 {[%emt 0:00:09]} 72. Kd2 {[%emt 0:00:14]} Kb2 {[%emt 0:01:39]} 73. Ra6 {[%emt 0:01:08]} Rd8+ {[%emt 0:00:14]} 74. Ke3 {[%emt 0:00:28]} Kb1 {[%emt 0:01:05]} 75. Rb6 {[%emt 0:00:34]} b2 {[%emt 0:00:25]} 76. Ra6 {[%emt 0:00:35]} Rb8 {[%emt 0:00:47]} 77. Kd2 {[%emt 0:00:13]} Rd8+ {[%emt 0:00:05]} 78. Ke3 {[%emt 0:00:33]} Rd5 {[%emt 0:00:45]} 79. Ke4 {[%emt 0:00:24]} Rd2 {[%emt 0:00:28] Kd4} 0-1

[Event "HUN-chT Youth 2019"]
[Site "Budapest"]
[Date "2019.10.28"]
[Round "4.34"]
[White "Oros, Mikhailo"]
[Black "Hegedus, Luca"]
[Result "1-0"]
[ECO "A05"]
[WhiteElo "1704"]
[BlackElo "1845"]
[Annotator "NA"]
[PlyCount "127"]
[EventDate "2019.10.26"]
[EventType "team-tourn"]
[EventCountry "HUN"]
[SourceTitle "playchess.com"]
[Source "ChessBase"]
[SourceQuality "1"]
[TimeControl "5400+30"]

1. Nf3 {[%emt 0:00:00]} Nf6 {[%emt 0:00:00]} 2. g3 {[%emt 0:00:03]} g6 {[%emt 0:00:00]} 3. Bg2 {[%emt 0:00:13]} Bg7 {[%emt 0:00:26]} 4. c4 {[%emt 0:00:47]} c6 {[%emt 0:05:27]} 5. d4 {[%emt 0:04:09]} d5 {[%emt 0:00:37]} 6. c5 {[%emt 0:03:27] D73: Fianchetto Grünfeld: 5 Nf3} ({White should try} 6. cxd5 $11 cxd5 7. Nc3) (6. Qb3 O-O 7. O-O Qb6 8. Nc3 Rd8 9. Bd2 dxc4 10. Qxc4 Be6 11. Qa4 Bf5 12. Rfe1 Ne4 13. Nxe4 Bxe4 14. Ba5 Qa6 15. Qa3 Re8 16. Bf1 c5 {½-½ (38) Tomashevsky,E (2718)-Nepomniachtchi,I (2776) Khanty-Mansiysk 2019}) 6... Nbd7 $146 {[%emt 0:03:03]} ({Predecessor:} 6... O-O 7. O-O Nbd7 8. Bf4 Re8 9. Ne5 Nh5 10. Nxd7 Nxf4 11. gxf4 Bxd7 12. e3 Qc8 13. a3 Bh3 {0-1 (37) Florek,W (1147)-Kozlinski,M (1615) Poland 2016}) 7. O-O {[%emt 0:01:16]} Ne4 {[%emt 0:03:11]} 8. Bf4 {[%emt 0:08:58]} O-O {[%emt 0:07:06]} 9. Nbd2 {[%emt 0:03:45]} e5 {[%emt 0:09:38]} 10. Nxe4 {[%emt 0:02:27]} exf4 {[%emt 0:02:37]} 11. Nd6 {[%emt 0:01:46]} fxg3 {[%emt 0:05:43]} 12. hxg3 {[%emt 0:00:22]} Nf6 {[%emt 0:02:43]} 13. Nxc8 {[%emt 0:00:34]} Rxc8 {[%emt 0:00:36]} 14. e3 {[%emt 0:05:11]} Ne4 {[%emt 0:01:32]} 15. Nd2 {[%emt 0:02:26]} f5 {[%emt 0:02:41]} 16. Nxe4 {[%emt 0:00:41]} fxe4 {[%emt 0:01:04]} 17. b4 {[%emt 0:02:16]} Kh8 {[%emt 0:02:40]} 18. a4 {[%emt 0:01:23]} Qd7 {[%emt 0:02:14]} 19. Qe2 {[%emt 0:01:02]} Rb8 {[%emt 0:06:18]} 20. Rfb1 {[%emt 0:03:21]} b5 {[%emt 0:06:31]} 21. axb5 {[%emt 0:02:02]} Rxb5 {[%emt 0:00:45]} 22. Qa2 {[%emt 0:02:54]} Rb7 {[%emt 0:01:49]} 23. Qa4 {[%emt 0:01:53]} Rfb8 {[%emt 0:02:29]} 24. Bf1 {[%emt 0:01:16]} Qe6 {[%emt 0:06:56]} 25. b5 {[%emt 0:03:34]} Bf8 {[%emt 0:04:59]} 26. Ra3 {[%emt 0:05:56]} cxb5 {[%emt 0:03:55]} 27. Rxb5 {[%emt 0:00:19]} Rxb5 {[%emt 0:05:45]} 28. Bxb5 {[%emt 0:00:21]} Qc8 {[%emt 0:02:12]} 29. Bf1 {[%emt 0:01:34]} Rb1 {[%emt 0:03:05]} 30. Qxa7 {[%emt 0:02:32]} Qf5 {[%emt 0:03:53]} 31. Ra2 {[%emt 0:02:50]} Rc1 {[%emt 0:01:43]} 32. Qa6 {[%emt 0:01:14]} Kg7 $18 {[%emt 0:02:01]} (32... h5 {was worth a try.} 33. Qa3 Rb1) 33. Qe2 {[%emt 0:02:07]} Kh6 {[%emt 0:01:08]} 34. Rc2 {[%emt 0:00:57]} Rxc2 {[%emt 0:00:42]} 35. Qxc2 {[%emt 0:00:03]} Qc8 {[%emt 0:00:10]} 36. c6 {[%emt 0:00:24]} Bd6 {[%emt 0:00:45]} 37. Kh2 {[%emt 0:00:25]} g5 {[%emt 0:01:05]} 38. Qa4 {[%emt 0:02:27]} Bc7 {[%emt 0:00:35]} 39. Qb5 {[%emt 0:02:27]} Qf5 {[%emt 0:00:26]} 40. Kg1 {[%emt 0:00:35]} Qe6 {[%emt 0:00:52]} 41. Qb7 {[%emt 0:00:16]} Qe7 {[%emt 0:00:14]} 42. Bh3 {[%emt 0:00:36]} Qd6 {[%emt 0:00:17]} 43. Qc8 {[%emt 0:02:40]} Kg6 {[%emt 0:00:57]} 44. Qe6+ {[%emt 0:00:23]} Kg7 {[%emt 0:00:22]} 45. Qxd6 {[%emt 0:00:19]} Bxd6 {[%emt 0:00:02]} 46. Be6 {[%emt 0:00:01]} Kf6 {[%emt 0:00:20]} 47. Bxd5 {[%emt 0:00:10]} Kf5 {[%emt 0:00:05]} 48. Bg8 {[%emt 0:01:09]} Kg6 {[%emt 0:00:11]} 49. g4 {[%emt 0:00:54]} h6 {[%emt 0:00:12]} 50. Bd5 {[%emt 0:00:07]} Kf6 {[%emt 0:00:05]} 51. Bxe4 {[%emt 0:00:11]} Ke6 {[%emt 0:00:14]} 52. Kg2 {[%emt 0:00:26]} Kf6 {[%emt 0:00:15]} 53. Bf5 {[%emt 0:00:35]} Ke7 {[%emt 0:00:15]} 54. Kf1 {[%emt 0:00:50]} Bb8 {[%emt 0:00:29]} 55. Ke2 {[%emt 0:00:19]} Kd6 {[%emt 0:00:14]} 56. Be4 {[%emt 0:00:25]} Ke7 {[%emt 0:00:29]} 57. Kd3 {[%emt 0:00:21]} Bh2 {[%emt 0:00:30]} 58. d5 {[%emt 0:01:45]} Kd6 {[%emt 0:00:18]} 59. Bg2 {[%emt 0:00:39]} Ke7 {[%emt 0:00:48]} 60. Ke4 {[%emt 0:00:29]} Bd6 {[%emt 0:00:29]} 61. Kf5 {[%emt 0:00:16]} Kf7 {[%emt 0:00:05]} 62. e4 {[%emt 0:00:22]} Bb8 {[%emt 0:00:04]} 63. e5 {[%emt 0:00:27]} Ke7 {[%emt 0:00:12]} 64. d6+ {[%emt 0:00:19]} 1-0

[Event "HUN-chT Youth 2019"]
[Site "Budapest"]
[Date "2019.10.28"]
[Round "4.35"]
[White "Kobol, Kitti"]
[Black "Ferku, Donat"]
[Result "0-1"]
[ECO "C16"]
[WhiteElo "1312"]
[BlackElo "1410"]
[Annotator "NA RC"]
[PlyCount "84"]
[EventDate "2019.10.26"]
[EventType "team-tourn"]
[EventCountry "HUN"]
[SourceTitle "playchess.com"]
[Source "ChessBase"]
[SourceQuality "1"]
[TimeControl "5400+30"]

1. e4 {[%emt 0:00:00]} e6 {[%emt 0:00:00]} 2. d4 {[%emt 0:00:00]} d5 {[%emt 0:00:00]} 3. Nc3 {[%emt 0:00:16]} Bb4 {[%emt 0:00:55]} 4. e5 {[%emt 0:04:31]} Bxc3+ {[%emt 0:00:58]} 5. bxc3 {[%emt 0:00:11]} Nc6 {[%emt 0:00:57]} 6. Bd3 {[%emt 0:03:47]} b6 {[%emt 0:01:06]} 7. Ne2 {[%emt 0:02:10]} Bb7 {[%emt 0:01:11]} 8. Bb2 {[%emt 0:03:15]} f6 {[%emt 0:02:11]} 9. f4 {[%emt 0:02:25]} Qe7 {[%emt 0:01:34]} 10. O-O {[%emt 0:04:11]} O-O-O {[%emt 0:00:49]} 11. c4 {[%emt 0:04:28]} dxc4 {[%emt 0:00:28]} 12. Bxc4 {[%emt 0:00:29]} fxe5 {[%emt 0:00:33]} 13. fxe5 {[%emt 0:00:38]} Nxe5 {[%emt 0:00:28]} 14. Bb3 {[%emt 0:00:44]} Nc6 {[%emt 0:00:14]} 15. Qe1 {[%emt 0:03:22]} Nf6 {[%emt 0:00:35]} 16. c3 {[%emt 0:01:00]} e5 {[%emt 0:00:46]} 17. Rc1 {[%emt 0:14:10]} Ba6 {[%emt 0:01:04]} 18. Rf2 {[%emt 0:01:18]} Rhe8 {[%emt 0:00:48]} 19. Ba4 {[%emt 0:02:06]} b5 {[%emt 0:00:30]} 20. Bb3 {[%emt 0:00:47]} exd4 {[%emt 0:06:20]} 21. cxd4 {[%emt 0:01:40]} Nxd4 {[%emt 0:04:07]} 22. Bxd4 {[%emt 0:01:13]} Rxd4 {[%emt 0:00:10]} 23. Qc3 {[%emt 0:00:33]} Rd7 {[%emt 0:00:37]} 24. Ng3 {[%emt 0:01:45]} b4 {[%emt 0:02:16]} 25. Qc2 {[%emt 0:01:55]} Ng4 {[%emt 0:00:55]} 26. Ba4 {[%emt 0:07:56]} Nxf2 {[%emt 0:01:37]} 27. Bxd7+ {[%emt 0:00:17]} Qxd7 {[%emt 0:00:10]} 28. Qxf2 {[%emt 0:00:32]} Qe6 {[%emt 0:01:09]} 29. h3 {[%emt 0:01:07]} Qe3 {[%emt 0:00:21]} 30. Rb1 {[%emt 0:02:58]} Qxf2+ {[%emt 0:00:52]} 31. Kxf2 {[%emt 0:00:14]} c5 {[%emt 0:00:24]} 32. Rc1 {[%emt 0:00:34]} c4 {[%emt 0:00:24]} 33. Kf3 {[%emt 0:00:33]} c3 {[%emt 0:00:10]} 34. a3 {[%emt 0:01:46]} Bb7+ {[%emt 0:00:25]} 35. Kf2 {[%emt 0:00:30]} a5 {[%emt 0:00:05]} 36. Ne2 {[%emt 0:02:05]} Rd8 {[%emt 0:00:09]} 37. g3 {[%emt 0:02:07]} Rd2 {[%emt 0:00:11]} 38. Ke1 {[%emt 0:00:21]} Ra2 {[%emt 0:00:38]} 39. axb4 {[%emt 0:00:28]} axb4 {[%emt 0:00:09]} 40. Nd4 {[%emt 0:00:27]} Rh2 {[%emt 0:00:38]} 41. Kd1 {[%emt 0:01:23]} Rh1+ {[%emt 0:00:22]} 42. Kc2 {[%emt 0:00:13]} Be4+ {[%emt 0:00:07]} 0-1

[Event "HUN-chT Youth 2019"]
[Site "Budapest"]
[Date "2019.10.28"]
[Round "4.36"]
[White "Papp, Regina"]
[Black "Suli, Henrietta"]
[Result "1-0"]
[ECO "C45"]
[WhiteElo "1366"]
[BlackElo "1207"]
[Annotator "NA RC"]
[PlyCount "77"]
[EventDate "2019.10.26"]
[EventType "team-tourn"]
[EventCountry "HUN"]
[SourceTitle "playchess.com"]
[Source "ChessBase"]
[SourceQuality "1"]
[TimeControl "5400+30"]

1. e4 {[%emt 0:00:00]} e5 {[%emt 0:00:00]} 2. Nf3 {[%emt 0:00:00]} Nc6 {[%emt 0:00:00]} 3. d4 {[%emt 0:00:00]} exd4 {[%emt 0:00:04]} 4. Nxd4 {[%emt 0:00:00]} Bc5 {[%emt 0:00:20]} 5. Nb3 {[%emt 0:00:01]} Bb6 {[%emt 0:01:19]} 6. Nc3 {[%emt 0:00:22]} Nf6 {[%emt 0:02:55]} 7. Qe2 {[%emt 0:00:54]} O-O {[%emt 0:00:41]} 8. Be3 {[%emt 0:01:19]} Bxe3 {[%emt 0:03:01]} 9. Qxe3 {[%emt 0:00:17]} Re8 {[%emt 0:01:57]} 10. f3 {[%emt 0:01:44]} d5 {[%emt 0:03:28]} 11. O-O-O {[%emt 0:01:38]} a6 {[%emt 0:10:50]} 12. Qf2 {[%emt 0:04:45]} Be6 {[%emt 0:03:51]} 13. Kb1 {[%emt 0:08:16]} Qd7 {[%emt 0:13:37]} 14. Nc5 {[%emt 0:03:23]} Qd6 {[%emt 0:01:16]} 15. Nxe6 {[%emt 0:02:16]} fxe6 {[%emt 0:00:42]} 16. g3 {[%emt 0:11:56]} Rad8 {[%emt 0:04:02]} 17. Bg2 {[%emt 0:06:04]} d4 {[%emt 0:03:07]} 18. h3 {[%emt 0:06:28]} Qb4 {[%emt 0:04:12]} 19. Ne2 {[%emt 0:03:39]} e5 {[%emt 0:04:29]} 20. Rhg1 {[%emt 0:04:07]} Qc4 {[%emt 0:06:58]} 21. b3 {[%emt 0:02:44]} Qb4 {[%emt 0:02:14]} 22. f4 {[%emt 0:05:39]} Qa3 {[%emt 0:06:45]} 23. Nc1 {[%emt 0:03:36]} a5 {[%emt 0:03:33]} 24. g4 {[%emt 0:05:06]} a4 {[%emt 0:02:52]} 25. g5 {[%emt 0:02:59]} Nd7 {[%emt 0:00:34]} 26. f5 {[%emt 0:01:35]} Ra8 {[%emt 0:01:01]} 27. f6 {[%emt 0:03:37]} Rf8 {[%emt 0:00:24]} 28. Bf1 {[%emt 0:00:42]} axb3 {[%emt 0:02:33]} 29. Bc4+ {[%emt 0:00:50]} Kh8 {[%emt 0:00:19]} 30. cxb3 {[%emt 0:03:26]} Na5 {[%emt 0:01:47]} 31. fxg7+ {[%emt 0:01:10]} Kxg7 {[%emt 0:00:30]} 32. Qh4 {[%emt 0:01:13]} Nxc4 {[%emt 0:01:27]} 33. bxc4 {[%emt 0:01:38]} Qb4+ {[%emt 0:00:31]} 34. Ka1 {[%emt 0:00:25]} Qc3+ {[%emt 0:02:06]} 35. Kb1 {[%emt 0:00:38]} Rf4 {[%emt 0:00:51]} 36. Qh6+ {[%emt 0:01:16]} Kh8 {[%emt 0:00:45]} 37. g6 {[%emt 0:02:24]} Nf6 {[%emt 0:00:12]} 38. gxh7 {[%emt 0:01:07]} Nxh7 {[%emt 0:00:54]} 39. Qg7# {[%emt 0:00:11]} 1-0

[Event "HUN-chT Youth 2019"]
[Site "Budapest"]
[Date "2019.10.28"]
[Round "5.1"]
[White "Bohus, Adam"]
[Black "Losonczi, Marcell"]
[Result "1-0"]
[ECO "C77"]
[WhiteElo "2229"]
[BlackElo "2249"]
[Annotator "NA RC"]
[PlyCount "99"]
[EventDate "2019.10.26"]
[EventType "team-tourn"]
[EventCountry "HUN"]
[SourceTitle "playchess.com"]
[Source "ChessBase"]
[SourceQuality "1"]
[TimeControl "5400+30"]

1. e4 {[%emt 0:00:00]} e5 {[%emt 0:00:00]} 2. Nf3 {[%emt 0:00:00]} Nc6 {[%emt 0:00:00]} 3. Bb5 {[%emt 0:00:00]} a6 {[%emt 0:00:00]} 4. Ba4 {[%emt 0:00:00]} Nf6 {[%emt 0:00:00]} 5. Nc3 {[%emt 0:00:05]} b5 {[%emt 0:03:06]} 6. Bb3 {[%emt 0:00:07]} Be7 {[%emt 0:00:07]} 7. d3 {[%emt 0:00:47]} d6 {[%emt 0:00:27]} 8. a3 {[%emt 0:00:14]} O-O {[%emt 0:00:43]} 9. Nd5 {[%emt 0:00:24]} Na5 {[%emt 0:08:45]} 10. Ba2 {[%emt 0:00:39]} Nxd5 {[%emt 0:00:50]} 11. Bxd5 {[%emt 0:00:19]} c6 {[%emt 0:00:31]} 12. Ba2 {[%emt 0:00:12]} c5 {[%emt 0:05:14]} 13. O-O {[%emt 0:02:10]} Be6 {[%emt 0:01:06]} 14. Bxe6 {[%emt 0:06:33]} fxe6 {[%emt 0:00:06]} 15. b4 {[%emt 0:00:07]} Nb7 {[%emt 0:02:00]} 16. Be3 {[%emt 0:10:17]} Rc8 {[%emt 0:00:22]} 17. Qb1 {[%emt 0:05:55]} Qd7 {[%emt 0:13:15]} 18. Rd1 {[%emt 0:19:01]} Bf6 {[%emt 0:09:16]} 19. Qb2 {[%emt 0:20:30]} Rc7 {[%emt 0:03:13]} 20. c3 {[%emt 0:03:35]} Rfc8 {[%emt 0:00:20]} 21. Rac1 {[%emt 0:04:00]} Qc6 {[%emt 0:12:48]} 22. Qb1 {[%emt 0:05:14]} a5 {[%emt 0:08:59]} 23. d4 {[%emt 0:07:36]} exd4 {[%emt 0:03:12]} 24. cxd4 {[%emt 0:00:13]} axb4 {[%emt 0:07:31]} 25. axb4 {[%emt 0:00:02]} c4 {[%emt 0:01:13]} 26. d5 {[%emt 0:03:07]} exd5 {[%emt 0:03:07]} 27. exd5 {[%emt 0:00:06]} Qe8 {[%emt 0:00:19]} 28. Bd4 {[%emt 0:01:54]} c3 {[%emt 0:04:56]} 29. Qd3 {[%emt 0:02:54]} Bxd4 {[%emt 0:05:55]} 30. Nxd4 {[%emt 0:00:01]} Rc4 {[%emt 0:00:14]} 31. Nc6 {[%emt 0:02:28]} Qe4 {[%emt 0:04:18]} 32. Qxe4 {[%emt 0:03:15]} Rxe4 {[%emt 0:00:06]} 33. Rxc3 {[%emt 0:00:18]} Kf8 {[%emt 0:02:23]} 34. Rf3+ {[%emt 0:01:39]} Ke8 {[%emt 0:00:06]} 35. Ra3 {[%emt 0:00:53]} Nd8 {[%emt 0:00:32]} 36. f3 {[%emt 0:00:00]} Re2 {[%emt 0:01:23]} 37. Nd4 {[%emt 0:00:40]} Rb2 {[%emt 0:00:04]} 38. Re1+ {[%emt 0:01:26]} Kf8 {[%emt 0:00:18]} 39. Rae3 {[%emt 0:00:50]} Rxb4 {[%emt 0:00:42]} 40. Re8+ {[%emt 0:00:40]} Kf7 {[%emt 0:00:02]} 41. Nc6 {[%emt 0:01:18]} Rxc6 {[%emt 0:00:09]} 42. R8e7+ {[%emt 0:00:33]} Kf6 {[%emt 0:01:56]} 43. dxc6 {[%emt 0:00:06]} Nxc6 {[%emt 0:00:05]} 44. R7e6+ {[%emt 0:00:10]} Kf7 {[%emt 0:00:09]} 45. Rxd6 {[%emt 0:00:04]} Rc4 {[%emt 0:00:08]} 46. Rd7+ {[%emt 0:01:19]} Kf6 {[%emt 0:00:55]} 47. Rd6+ {[%emt 0:00:01]} Kf7 {[%emt 0:00:09]} 48. Rdd1 {[%emt 0:00:09]} Nd4 {[%emt 0:01:36]} 49. Re4 {[%emt 0:00:27]} Nb3 {[%emt 0:00:18]} 50. Rd7+ {[%emt 0:00:40]} 1-0

[Event "HUN-chT Youth 2019"]
[Site "Budapest"]
[Date "2019.10.28"]
[Round "5.1"]
[White "Bohus, Adam"]
[Black "Krstulovic, Alex"]
[Result "*"]
[ECO "C77"]
[WhiteElo "2229"]
[BlackElo "2324"]
[Annotator "NA"]
[PlyCount "23"]
[EventDate "2019.10.26"]
[EventType "team-tourn"]
[EventCountry "HUN"]
[SourceTitle "playchess.com"]
[Source "ChessBase"]
[SourceQuality "1"]
[TimeControl "5400+30"]

1. e4 {[%emt 0:00:00]} e5 {[%emt 0:00:00]} 2. Nf3 {[%emt 0:00:00]} Nc6 {[%emt 0:00:00]} 3. Bb5 {[%emt 0:00:00]} a6 {[%emt 0:00:00]} 4. Ba4 {[%emt 0:00:00]} Nf6 {[%emt 0:00:00]} 5. Nc3 {[%emt 0:00:05]} b5 {[%emt 0:03:06]} 6. Bb3 {[%emt 0:00:07]} Be7 {[%emt 0:00:07]} 7. d3 {[%emt 0:00:47]} d6 {[%emt 0:00:27]} 8. a3 {[%emt 0:00:14]} O-O {[%emt 0:00:43]} 9. Nd5 {[%emt 0:00:24]} Na5 {[%emt 0:08:45]} 10. Ba2 {[%emt 0:00:39]} Nxd5 {[%emt 0:00:50]} 11. Bxd5 {[%emt 0:00:19]} c6 {[%emt 0:00:31]} 12. Ba2 {[%emt 0:00:12]} *

[Event "HUN-chT Youth 2019"]
[Site "Budapest"]
[Date "2019.10.28"]
[Round "5.1"]
[White "Palczert, Matyas"]
[Black "Turcsanyi, Vince Gergo"]
[Result "1-0"]
[ECO "C44"]
[WhiteElo "2009"]
[BlackElo "1810"]
[Annotator "NA RC"]
[PlyCount "105"]
[EventDate "2019.10.26"]
[EventType "team-tourn"]
[EventCountry "HUN"]
[SourceTitle "playchess.com"]
[Source "ChessBase"]
[SourceQuality "1"]
[TimeControl "5400+30"]

1. e4 {[%emt 0:00:00]} e5 {[%emt 0:00:00]} 2. Nf3 {[%emt 0:00:00]} Nc6 {[%emt 0:00:00]} 3. d4 {[%emt 0:00:00]} exd4 {[%emt 0:00:02]} 4. Nxd4 {[%emt 0:00:10]} Nf6 {[%emt 0:00:10]} 5. Nc3 {[%emt 0:00:33]} Bb4 {[%emt 0:00:11]} 6. Nxc6 {[%emt 0:00:24]} bxc6 {[%emt 0:00:07]} 7. Bd3 {[%emt 0:00:19]} d5 {[%emt 0:00:09]} 8. exd5 {[%emt 0:00:13]} cxd5 {[%emt 0:00:16]} 9. O-O {[%emt 0:00:17]} O-O {[%emt 0:00:21]} 10. h3 c6 {[%emt 0:03:02]} 11. Qf3 {[%emt 0:04:29]} Rb8 {[%emt 0:03:21]} 12. Bf4 {[%emt 0:05:02]} Bd6 {[%emt 0:02:04]} 13. b3 {[%emt 0:02:52]} Bb7 {[%emt 0:03:35]} 14. Bxd6 {[%emt 0:07:14]} Qxd6 {[%emt 0:00:17]} 15. Qg3 {[%emt 0:01:21]} Qxg3 {[%emt 0:09:46]} 16. fxg3 {[%emt 0:00:12]} Rfe8 {[%emt 0:01:07]} 17. Na4 {[%emt 0:05:53]} Nd7 {[%emt 0:11:29]} 18. Rae1 {[%emt 0:05:32]} g6 {[%emt 0:01:49]} 19. g4 {[%emt 0:09:32]} Kf8 {[%emt 0:03:32]} 20. Rxe8+ {[%emt 0:02:30]} Rxe8 {[%emt 0:00:32]} 21. b4 {[%emt 0:01:13]} Rc8 {[%emt 0:09:26]} 22. Nc5 {[%emt 0:02:08]} Nxc5 {[%emt 0:02:16]} 23. bxc5 {[%emt 0:00:42]} Rc7 {[%emt 0:02:19]} 24. h4 {[%emt 0:03:02]} Bc8 {[%emt 0:01:37]} 25. g5 {[%emt 0:00:22]} Kg7 {[%emt 0:01:05]} 26. h5 {[%emt 0:00:56]} Re7 {[%emt 0:06:12]} 27. h6+ {[%emt 0:00:59]} Kf8 {[%emt 0:00:42]} 28. a4 {[%emt 0:04:27]} Ke8 {[%emt 0:07:09]} 29. a5 {[%emt 0:05:34]} Re5 {[%emt 0:03:39]} 30. Rb1 {[%emt 0:01:08]} Kd7 {[%emt 0:01:07]} 31. Rf1 {[%emt 0:01:26]} Ke7 {[%emt 0:00:31]} 32. a6 {[%emt 0:00:46]} Rxg5 {[%emt 0:06:27]} 33. Rb1 {[%emt 0:00:40]} Kd8 {[%emt 0:00:17]} 34. Rb8 {[%emt 0:04:03]} Re5 {[%emt 0:00:11]} 35. Ra8 {[%emt 0:00:14]} Re7 {[%emt 0:00:12]} 36. g4 {[%emt 0:01:12]} Rc7 {[%emt 0:01:28]} 37. g5 {[%emt 0:00:49]} Ke7 {[%emt 0:00:16]} 38. Kh2 {[%emt 0:01:10]} Ke6 {[%emt 0:01:51]} 39. Kg3 {[%emt 0:02:02]} Ke5 {[%emt 0:03:02]} 40. c3 {[%emt 0:00:41]} d4 {[%emt 0:02:46]} 41. c4 {[%emt 0:04:40]} f5 {[%emt 0:03:37]} 42. Kf3 {[%emt 0:01:09]} Ke6 {[%emt 0:06:52]} 43. Kf4 {[%emt 0:00:47]} Bxa6 {[%emt 0:04:18]} 44. Rd8 {[%emt 0:00:44]} Rd7 {[%emt 0:01:09]} 45. Rxd7 {[%emt 0:00:37]} Kxd7 {[%emt 0:00:02]} 46. Bxf5+ {[%emt 0:00:51]} gxf5 {[%emt 0:00:42]} 47. g6 {[%emt 0:00:10]} d3 {[%emt 0:01:43]} 48. Ke3 {[%emt 0:00:26]} Bxc4 {[%emt 0:00:38]} 49. gxh7 {[%emt 0:00:21]} f4+ {[%emt 0:00:26]} 50. Kd2 {[%emt 0:00:13]} f3 {[%emt 0:00:11]} 51. h8=Q {[%emt 0:00:16]} f2 {[%emt 0:00:04]} 52. Qf6 {[%emt 0:00:47]} f1=Q {[%emt 0:00:15]} 53. Qxf1 {[%emt 0:00:09]} 1-0